bitfinex-derivatives/quotes_ETHF0:USTF0_20250616
["timestamp","ask_amount","ask_price","bid_price","bid_amount"]
[1750051733428,0.0057809,2596.5,2596.1,3.9838209]
[1750051733727,1.2564,2596.4,2596.1,3.2135809]
[1750051733935,0.0057809,2596.5,2596.4,0.77016]
[1750051734227,0.0057809,2596.5,2596.4,3.97796]
[1750051734624,1.2971,2597.1,2596.4,3.2078]
[1750051734828,1.2971,2597.1,2597.0,0.76999]
[1750051735125,3.97766,2597.5,2597.3,0.76989]
[1750051735324,4.5049,2597.5,2596.9,40.8]
[1750051735925,0.76989,2597.4,2597.2,0.76991]
[1750051736233,2.06702,2597.3,2597.1,0.76994]
[1750051736526,1.2971,2597.3,2596.8,3.2078]
[1750051736732,1.92506,2596.9,2596.1,3.2135809]
[1750051737031,1.92491,2597.1,2596.6,0.77011]
[1750051737032,2.13587,2596.8,2596.6,0.77011]
[1750051737236,1.3658,2596.8,2596.7,0.77008]
[1750051737435,1.3658,2596.8,2596.5,3.2078]
[1750051737634,2.13585,2596.8,2596.6,0.77009]
[1750051738129,2.13585,2596.8,2596.7,0.77008]
[1750051738530,2.13586,2596.8,2596.6,0.77009]
[1750051738730,1.3658,2596.8,2596.7,0.77008]
[1750051739640,1.3658,2596.8,2596.5,3.2078]
[1750051739938,1.3658,2596.8,2596.7,0.77008]
[1750051740130,0.77011,2596.6,2596.5,3.2078]
[1750051740337,2.1652,2596.8,2596.2,3.2078]
[1750051740636,3.2078,2597.0,2596.5,3.2078]
[1750051740836,3.2078,2597.0,2596.5,3.97791]
[1750051741135,3.2078,2596.7,2596.1,3.2135809]
[1750051741335,0.77016,2596.5,2596.1,3.2135809]
[1750051741525,3.2078,2597.1,2596.4,3.2078]
[1750051741841,1.2814,2597.0,2596.5,5.04270785]
[1750051742037,1.2814,2597.0,2596.7,3.2078]
[1750051742238,1.2814,2597.0,2596.9,0.77002]
[1750051742934,4.0072,2597.4,2597.3,0.7699]
[1750051743532,4.0072,2597.4,2596.7,4.33171959]
[1750051743738,3.2078,2596.8,2596.1,4.33750049]
[1750051744038,1.2655,2596.7,2596.5,0.77011]
[1750051744240,1.2655,2596.7,2596.4,3.2078]
[1750051744241,1.2655,2596.7,2596.6,0.77011]
[1750051745434,1.2655,2596.7,2596.5,0.77012]
[1750051745643,2.03561,2596.7,2596.4,3.97794]
[1750051745832,1.2655,2596.7,2596.1,17.17452481]
[1750051746136,1.2655,2596.7,2596.6,0.77011]
[1750051746539,1.2655,2596.7,2596.1,3.2135809]
[1750051746735,0.77018,2596.4,2596.2,0.77021]
[1750051746935,0.77023,2596.2,2596.1,3.2135809]
[1750051747238,1.3408,2596.3,2596.1,0.0057809]
[1750051747447,0.77023,2596.2,2596.1,0.0057809]
[1750051747742,2.11102,2596.3,2596.1,0.0057809]
[1750051747940,0.77023,2596.2,2596.1,0.0057809]
[1750051748139,0.77026,2596.1,2595.8,0.77033]
[1750051748439,1.3408,2596.0,2595.6,3.2078]
[1750051748744,1.3408,2596.0,2595.6,3.97819]
[1750051748940,0.77038,2595.7,2595.2,4.33171959]
[1750051749138,1.3663,2595.6,2595.2,3.2135809]
[1750051749338,0.77044,2595.5,2595.2,3.2135809]
[1750051749545,1.3663,2595.4,2595.3,0.77048]
[1750051749843,1.3663,2595.4,2595.2,3.2135809]
[1750051750044,1.3663,2595.4,2595.3,0.77049]
[1750051750742,1.3663,2595.4,2595.2,3.9840809]
[1750051750943,1.3663,2595.4,2595.3,0.77049]
[1750051751240,0.8680809,2595.7,2595.6,0.77041]
[1750051751746,0.0057809,2595.7,2595.6,3.97821]
[1750051755134,1.3663,2595.9,2595.8,0.77035]
[1750051755540,3.2078,2597.4,2595.9,3.2078]
[1750051755736,0.76991,2597.3,2597.1,0.76995]
[1750051755944,1.2777,2597.3,2597.1,0.76995]
[1750051756333,2.04761,2597.3,2596.9,0.0057809]
[1750051756538,3.2078,2597.1,2596.9,0.7757909]
[1750051756740,1.2777,2597.0,2596.9,0.0057809]
[1750051756948,2.04769,2597.0,2596.9,0.0057809]
[1750051757140,0.77005,2596.9,2596.5,0.77012]
[1750051757345,4.4855,2596.8,2596.5,0.77011]
[1750051757540,4.4855,2596.8,2596.1,3.2078]
[1750051757741,2.04776,2596.8,2596.1,3.2078]
[1750051757944,0.77009,2596.7,2596.4,0.77015]
[1750051758146,1.3345,2596.6,2596.3,0.0057809]
[1750051758335,2.1972,2596.6,2596.3,0.0057809]
[1750051759245,0.0057809,2596.8,2596.7,0.77008]
[1750051763146,0.0057809,2596.8,2596.7,3.97788]
[1750051763854,0.7758309,2596.8,2596.7,3.2078]
[1750051764057,0.0057809,2596.8,2596.7,0.77008]
[1750051764350,2.0529409,2596.8,2596.6,0.77009]
[1750051764543,0.77008,2596.7,2596.5,0.77014]
[1750051764750,1.2771,2596.6,2596.5,0.77014]
[1750051764948,0.77014,2596.5,2596.4,3.2078]
[1750051768754,0.77017,2596.4,2596.3,0.0057809]
[1750051769063,2.12757,2596.4,2596.3,0.0057809]
[1750051770851,7.12757,2596.4,2596.3,0.0057809]
[1750051773955,15.89457,2596.4,2596.3,0.0057809]
[1750051774567,15.1244,2596.4,2595.9,3.97811]
[1750051774755,10.1244,2596.4,2596.0,0.77029]
[1750051775261,1.3574,2596.4,2595.9,3.2078]
[1750051775558,3.2078,2596.6,2596.3,4.55855867]
[1750051775760,0.7758409,2596.8,2596.6,0.77008]
[1750051776060,2.0653509,2596.8,2596.4,3.2078]
[1750051776255,0.77008,2596.7,2596.4,3.2078]
[1750051776459,2.07618,2596.7,2596.4,3.2078]
[1750051776762,2.07618,2596.7,2596.5,0.77011]
[1750051777655,0.77011,2596.6,2596.4,3.97795]
[1750051778158,0.77011,2596.6,2596.5,0.77014]
[1750051778659,0.77011,2596.6,2596.4,3.97795]
[1750051779163,0.77011,2596.6,2596.5,0.77014]
[1750051779365,0.77011,2596.6,2596.4,3.97795]
[1750051780464,0.77014,2596.5,2596.4,3.2078]
[1750051781765,0.77014,2596.5,2596.4,3.97797]
[1750051782267,0.77013,2596.6,2596.4,3.97797]
[1750051782570,0.77014,2596.5,2596.4,3.97797]
[1750051782766,0.77014,2596.5,2596.4,3.2078]
[1750051783568,0.77014,2596.5,2596.4,3.97797]
[1750051783765,0.77014,2596.6,2596.5,0.77014]
[1750051783968,0.77009,2596.7,2596.6,0.77011]
[1750051784266,0.77009,2596.7,2596.5,0.77012]
[1750051784470,2.07869,2596.7,2596.5,0.77012]
[1750051784662,0.7701,2596.7,2596.5,0.77012]
[1750051785063,0.7758309,2596.8,2596.7,0.77008]
[1750051785272,0.77008,2596.7,2596.6,0.77009]
[1750051785469,0.77008,2596.7,2596.4,3.2078]
[1750051785766,0.7758509,2596.8,2596.7,0.77008]
[1750051786264,0.7758509,2596.8,2596.4,3.2078]
[1750051786471,0.0057809,2596.8,2596.4,3.2078]
[1750051786767,0.0057809,2596.8,2596.5,0.77013]
[1750051786967,0.77011,2596.7,2596.6,0.77011]
[1750051787360,1.3463809,2596.8,2596.7,0.77008]
[1750051787566,0.0057809,2596.8,2596.7,3.97788]
[1750051789472,0.7758309,2596.8,2596.4,3.2078]
[1750051789670,1.284,2596.7,2596.6,0.77008]
[1750051790074,2.05408,2596.7,2596.6,0.77008]
[1750051791065,1.284,2596.7,2596.6,0.77008]
[1750051791266,0.0057809,2596.8,2596.7,0.77008]
[1750051791573,1.2897809,2596.8,2596.7,0.77008]
[1750051791766,1.2897809,2596.8,2596.7,3.97788]
[1750051792069,0.0057809,2596.8,2596.7,3.97788]
[1750051795474,3.2078,2597.5,2597.4,0.76987]
[1750051795681,1.2632,2599.0,2597.4,57.02935867]
[1750051795876,1.2632,2599.0,2598.7,3.2078]
[1750051796077,1.2632,2599.0,2598.7,3.97728]
[1750051796377,1.2632,2599.0,2598.4,3.2078]
[1750051796570,0.76954,2598.5,2598.4,0.0057809]
[1750051796971,1.2632,2598.7,2598.4,0.7753309]
[1750051797167,0.0057809,2599.0,2598.4,3.2135809]
[1750051797368,5.32810867,2598.5,2598.4,0.0057809]
[1750051797679,0.76965,2598.2,2597.7,3.2078]
[1750051797873,28.20565,2598.2,2597.8,0.76974]
[1750051798073,1.335,2598.1,2597.8,0.76974]
[1750051798368,1.335,2598.1,2597.7,3.2078]
[1750051798369,28.761,2598.1,2597.7,3.2078]
[1750051798564,0.76971,2598.0,2597.7,3.97758]
[1750051798770,2.10471,2598.0,2597.7,3.97758]
[1750051798971,1.335,2598.0,2597.8,0.76974]
[1750051799187,1.335,2598.0,2597.7,3.2078]
[1750051799378,2.10476,2598.0,2597.7,3.2078]
[1750051799575,2.10476,2598.0,2597.7,3.97763]
[1750051799778,1.335,2598.0,2597.7,3.9776]
[1750051800181,2.10474,2598.0,2597.7,3.9776]
[1750051800381,1.335,2598.0,2597.7,3.9776]
[1750051800587,1.335,2598.0,2597.7,3.2078]
[1750051800786,28.13373,2598.1,2597.8,0.76978]
[1750051800984,27.344,2598.1,2597.7,3.2078]
[1750051801183,1.2341,2598.4,2597.8,4.55855867]
[1750051801487,1.2341,2598.4,2598.1,3.2078]
[1750051801786,0.9268,2598.6,2598.3,0.76964]
[1750051801983,29.02237,2598.6,2598.4,3.2078]
[1750051802180,0.9268,2598.6,2598.4,3.2078]
[1750051802379,1.2341,2598.6,2598.4,3.2078]
[1750051802694,0.0057809,2599.0,2598.9,0.76948]
[1750051803187,0.0057809,2599.0,2598.6,0.76955]
[1750051803385,0.0057809,2599.0,2598.4,3.2078]
[1750051803585,9.69023867,2598.7,2597.7,4.3361665]
[1750051803792,0.76983,2597.7,2597.6,0.0057809]
[1750051803983,3.2078,2598.0,2597.6,0.0057809]
[1750051804185,1.3021,2597.9,2597.6,0.0057809]
[1750051804392,0.8744,2598.1,2597.7,0.76981]
[1750051804593,0.76974,2598.0,2597.6,0.7756209]
[1750051804887,3.2078,2598.0,2597.6,0.0057809]
[1750051805192,0.76983,2597.7,2597.6,0.0057809]
[1750051805689,28.12483,2597.7,2597.6,0.0057809]
[1750051806293,36.56883,2597.7,2597.6,0.0057809]
[1750051806689,39.77663,2597.7,2597.6,0.0057809]
[1750051808389,44.0068,2597.7,2597.0,3.2078]
[1750051808585,3.2078,2597.4,2596.7,3.2078]
[1750051808893,0.77003,2597.1,2596.7,0.77011]
[1750051809093,3.2078,2596.9,2596.4,3.2078]
[1750051809293,0.77018,2596.6,2596.2,0.77027]
[1750051809586,1.92506,2597.1,2596.6,0.77016]
[1750051809587,0.0057809,2596.7,2596.6,0.77016]
[1750051809784,0.0057809,2596.7,2596.5,0.77017]
[1750051810586,0.0057809,2596.7,2596.4,3.2078]
[1750051810786,0.0057809,2596.7,2596.5,0.77018]
[1750051811186,0.0057809,2596.7,2596.4,3.2078]
[1750051811187,0.0057809,2596.7,2596.6,0.77016]
[1750051811494,1.3351809,2596.7,2596.5,0.77018]
[1750051811687,1.3351809,2596.7,2596.4,3.2078]
[1750051811889,1.3351809,2596.7,2596.1,3.9838709]
[1750051811890,0.77021,2596.5,2596.1,3.9838709]
[1750051812198,0.7759309,2596.7,2596.4,0.77022]
[1750051812382,0.0057809,2596.7,2596.5,3.2078]
[1750051812582,0.7759209,2596.7,2596.4,0.77021]
[1750051812782,0.77018,2596.6,2596.2,3.97807]
[1750051812983,1.2763,2596.5,2596.3,0.77025]
[1750051813891,1.2763,2596.5,2596.4,0.77022]
[1750051814192,1.2763,2596.5,2596.3,0.77024]
[1750051814389,1.2763,2596.5,2596.3,0.77025]
[1750051814593,0.77023,2596.4,2596.2,3.2078]
[1750051814894,4.4841,2596.5,2596.1,0.0057809]
[1750051815395,1.2763,2596.5,2596.3,3.97804]
[1750051815996,1.2763,2596.5,2596.4,0.77022]
[1750051816697,0.77024,2596.4,2596.2,0.77028]
[1750051816892,1.2582,2596.3,2596.2,0.77028]
[1750051818499,0.0057809,2596.7,2596.6,0.77016]
[1750051818696,0.0057809,2596.7,2596.6,8.53651867]
[1750051818893,0.0057809,2596.7,2596.6,3.97796]
[1750051819993,0.0057809,2596.7,2596.6,8.53651867]
[1750051820296,0.0057809,2596.7,2596.6,13.53651867]
[1750051820599,0.9472,2597.3,2597.2,0.76998]
[1750051820795,2.2065,2597.3,2597.2,0.76998]
[1750051827796,7.2065,2597.3,2596.7,3.2078]
[1750051827996,0.77003,2597.1,2596.9,0.77006]
[1750051828202,1.2739,2597.0,2596.7,3.2078]
[1750051828504,1.2739,2597.0,2596.9,0.77007]
[1750051828697,2.04395,2597.0,2596.8,0.7701]
[1750051828999,1.2739,2597.0,2596.8,0.7701]
[1750051829204,0.77008,2596.9,2596.7,3.2078]
[1750051829396,0.77018,2596.6,2596.4,3.978]
[1750051829596,1.2739,2596.5,2596.1,4.3419474]
[1750051829805,1.2739,2596.5,2596.1,3.9838809]
[1750051830002,0.77024,2596.4,2596.2,0.77028]
[1750051830303,2.04417,2596.3,2596.1,3.9838809]
[1750051830498,0.77028,2596.2,2596.1,3.2135809]
[1750051830701,0.77028,2596.2,2596.1,0.0057809]
[1750051830702,5.25198,2596.2,2596.1,0.0057809]
[1750051831003,42.04189,2596.2,2595.6,40.8]
[1750051831203,6.2766,2596.2,2595.8,4.55855867]
[1750051831402,6.2766,2596.2,2596.0,0.77033]
[1750051831611,6.2766,2596.2,2595.9,0.77036]
[1750051831799,0.77034,2596.0,2595.8,3.2078]
[1750051832100,6.2766,2596.2,2595.9,0.77036]
[1750051832101,3.8448709,2596.2,2595.9,0.77036]
[1750051832298,3.8448709,2596.2,2595.8,3.97819]
[1750051832299,3.0745809,2596.2,2595.8,3.97819]
[1750051832503,0.77034,2596.1,2595.8,3.97819]
[1750051832808,0.77037,2595.9,2595.8,3.2078]
[1750051832997,0.77037,2595.9,2595.7,0.77043]
[1750051833304,0.77038,2595.9,2595.7,0.77042]
[1750051833504,1.2726,2595.8,2595.6,0.7762309]
[1750051833797,1.2726,2595.8,2595.7,0.77043]
[1750051834002,1.2726,2595.8,2595.6,0.7762309]
[1750051834405,1.2726,2595.8,2595.7,0.77043]
[1750051834798,2.043,2595.8,2595.6,0.7762209]
[1750051835099,1.2726,2595.8,2595.7,0.77043]
[1750051835500,2.043,2595.8,2595.6,0.7762209]
[1750051835694,1.2726,2595.8,2595.7,0.77043]
[1750051836692,2.043,2595.8,2595.6,0.0057809]
[1750051837004,1.2726,2595.8,2595.7,0.77043]
[1750051837198,2.04301,2595.8,2595.6,0.7762209]
[1750051837601,1.2726,2595.8,2595.6,0.0057809]
[1750051837804,2.04301,2595.8,2595.6,0.7762309]
[1750051838103,1.2726,2595.8,2595.7,0.77043]
[1750051838497,0.0057809,2596.2,2596.1,0.77031]
[1750051838694,0.0057809,2596.2,2596.1,8.53666867]
[1750051839099,0.0057809,2596.2,2596.1,9.63907377]
[1750051839596,0.77017,2596.6,2596.4,0.77021]
[1750051839805,0.77015,2596.7,2596.5,0.77019]
[1750051840103,1.2628,2596.6,2596.4,0.7702]
[1750051840296,2.03297,2596.6,2596.4,0.7702]
[1750051840492,1.2628,2596.6,2596.5,0.77019]
[1750051840792,2.03296,2596.6,2596.4,0.7702]
[1750051840996,1.2628,2596.6,2596.1,7.76635867]
[1750051841203,0.0057809,2596.8,2596.7,0.77013]
[1750051841504,0.7758909,2596.8,2596.6,0.77014]
[1750051841701,2.0386909,2596.8,2596.6,0.77014]
[1750051841899,1.2685809,2596.8,2596.7,3.97793]
[1750051842599,0.77014,2596.7,2596.5,0.77018]
[1750051842808,1.2628,2596.6,2596.5,0.77018]
[1750051843705,0.0057809,2596.8,2596.6,0.77014]
[1750051843906,0.0057809,2596.8,2596.4,3.2078]
[1750051844106,0.7758909,2596.8,2596.6,0.77015]
[1750051845504,0.77013,2596.7,2596.5,0.77017]
[1750051845809,0.77017,2596.6,2596.4,3.97801]
[1750051846108,0.77015,2596.7,2596.5,0.77018]
[1750051846310,2.00535,2596.7,2596.5,0.77018]
[1750051846503,0.77016,2596.6,2596.4,3.978]
[1750051846704,2.00536,2596.6,2596.4,3.978]
[1750051846911,1.2352,2596.6,2596.5,0.77019]
[1750051847409,0.7759109,2596.8,2596.6,0.77014]
[1750051847597,0.77013,2596.7,2596.6,0.77014]
[1750051847802,2.00533,2596.7,2596.6,0.77014]
[1750051848307,2.00533,2596.7,2596.5,0.77017]
[1750051848510,1.2352,2596.7,2596.5,0.77017]
[1750051848807,2.00535,2596.7,2596.5,0.77017]
[1750051849007,2.00535,2596.7,2596.5,0.77019]
[1750051849508,1.2352,2596.7,2596.4,3.2078]
[1750051849703,0.77018,2596.6,2596.4,0.77021]
[1750051849904,1.2555,2596.5,2596.4,0.77021]
[1750051850201,1.2555,2596.5,2596.4,1.87447916]
[1750051850805,1.2555,2596.5,2596.4,5.08227916]
[1750051851602,2.02569,2596.5,2596.4,5.08227916]
[1750051851807,1.2555,2596.5,2596.4,5.08227916]
[1750051852512,0.0057809,2596.8,2596.7,0.77013]
[1750051852711,1.8243,2597.3,2597.2,0.76999]
[1750051853100,0.8727,2597.3,2597.2,0.76999]
[1750051853408,1.3166,2597.5,2597.4,0.76993]
[1750051853615,2.0865,2597.5,2597.3,3.97773]
[1750051853908,1.3166,2597.5,2597.4,0.76993]
[1750051854110,0.0057809,2597.7,2597.6,0.76987]
[1750051854309,0.0057809,2597.7,2597.6,3.97767]
[1750051855709,0.0057809,2597.7,2597.6,3.2078]
[1750051856017,0.76993,2597.4,2597.2,0.0057809]
[1750051856217,1.2842,2597.3,2597.2,0.0057809]
[1750051856417,1.2842,2597.3,2597.2,40.8057809]
[1750051856710,0.0057809,2597.7,2597.2,41.5757509]
[1750051856914,3.2078,2597.5,2597.2,0.0057809]
[1750051857109,0.76996,2597.3,2597.2,0.0057809]
[1750051857314,2.05414,2597.4,2597.2,0.0057809]
[1750051857716,0.76996,2597.3,2597.2,0.0057809]
[1750051857911,1.2842,2597.3,2597.2,0.7757709]
[1750051858110,2.05416,2597.3,2597.2,0.0057809]
[1750051858312,1.2842,2597.3,2597.2,0.7757709]
[1750051858518,0.9036,2597.5,2597.4,0.76993]
[1750051858819,0.9534,2597.6,2597.5,0.7699]
[1750051859025,0.9534,2597.6,2597.2,3.2135809]
[1750051859026,1.3171809,2597.7,2597.6,0.76987]
[1750051859818,1.3171809,2597.7,2597.5,0.76989]
[1750051859819,2.0870309,2597.7,2597.5,0.76989]
[1750051860011,0.76988,2597.6,2597.4,0.7699]
[1750051860207,1.3114,2597.6,2597.5,0.7699]
[1750051860611,7.665,2598.0,2597.5,0.7699]
[1750051860612,1.45400426,2598.8,2598.6,0.76957]
[1750051860816,0.76926,2599.7,2598.7,11.97383418]
[1750051861017,0.07693,2599.6,2599.5,0.7693]
[1750051861227,0.07693,2599.6,2599.4,3.97712]
[1750051861408,0.07693,2599.6,2599.5,0.7693]
[1750051862223,4.55855867,2601.4,2599.5,38.3409596]
[1750051862515,4.55855867,2600.5,2599.9,3.2078]
[1750051862717,3.2078,2600.0,2599.3,3.2135809]
[1750051862914,1.2688,2599.9,2599.3,3.2135809]
[1750051863317,0.76933,2599.4,2599.3,0.0057809]
[1750051863910,3.88753,2599.4,2599.3,0.0057809]
[1750051864618,0.76945,2599.0,2598.9,3.2078]
[1750051864819,0.11882622,2599.3,2598.9,3.2078]
[1750051865023,0.76945,2599.0,2598.9,3.2078]
[1750051865621,1.29164273,2599.2,2598.9,3.2078]
[1750051865822,0.00574273,2599.2,2598.9,8.08897378]
[1750051866011,0.00574273,2599.2,2598.9,3.08897378]
[1750051866319,0.00574273,2599.2,2599.0,0.76944]
[1750051866518,0.76925,2599.7,2599.0,6.56349867]
[1750051866713,0.7692,2599.9,2599.5,3.2078]
[1750051866922,4.1492,2600.4,2599.8,3.2078]
[1750051867221,1.2859,2600.3,2599.7,4.55855867]
[1750051867519,2.05498,2600.3,2599.9,3.2078]
[1750051867725,2.05498,2600.3,2600.2,3.2078]
[1750051868512,0.76924,2599.7,2599.6,3.2078]
[1750051868711,0.7692,2599.9,2599.6,44.0078]
[1750051869324,0.76915,2600.0,2599.6,44.0078]
[1750051869527,0.76915,2600.0,2599.9,3.2078]
[1750051870119,1.2859,2600.3,2599.6,40.8]
[1750051870120,0.76923,2599.8,2599.6,40.8]
[1750051870333,1.3088,2599.7,2599.5,3.2078]
[1750051870523,3.2078,2600.3,2599.5,8.2078]
[1750051870824,3.2078,2600.8,2600.2,3.2078]
[1750051871026,3.2078,2600.8,2600.2,3.21356945]
[1750051871027,0.76906,2600.3,2600.2,3.21356945]
[1750051871215,0.76902,2600.5,2600.2,3.21356945]
[1750051871419,3.0968,2600.7,2600.2,3.21356945]
[1750051871420,0.76906,2600.3,2600.2,3.21356945]
[1750051873216,3.41987803,2601.4,2600.2,8.21356945]
[1750051873420,2.213,2600.9,2600.2,3.21356945]
[1750051873719,0.76893,2600.8,2600.2,3.21356945]
[1750051873917,1.2818,2600.7,2600.3,0.76905]
[1750051874117,2.05075,2600.7,2600.2,3.98264945]
[1750051874413,1.2818,2600.7,2600.2,3.98264945]
[1750051874614,1.2818,2600.7,2600.2,3.21356945]
[1750051875020,0.76902,2600.5,2600.2,3.21356945]
[1750051875220,1.2818,2600.4,2600.2,3.21356945]
[1750051875824,2.05085,2600.4,2600.2,3.21356945]
[1750051876021,0.76906,2600.3,2600.2,3.21356945]
[1750051876222,2.05086,2600.3,2600.2,3.21356945]
[1750051876920,2.05086,2600.3,2600.2,0.00576945]
[1750051877322,1.2818,2600.3,2600.2,0.00576945]
[1750051877522,2.05086,2600.3,2600.2,0.00576945]
[1750051878731,0.76915,2600.0,2599.9,3.2078]
[1750051880028,1.2711,2600.0,2599.9,3.2078]
[1750051881232,1.68154,2600.1,2599.9,3.2078]
[1750051881624,0.76915,2600.0,2599.9,3.10395762]
[1750051881828,1.25896945,2600.2,2599.9,3.10395762]
[1750051882228,1.25896945,2600.2,2600.1,0.76912]
[1750051882529,5.3238,2600.5,2600.4,0.76903]
[1750051882723,5.3238,2600.5,2600.1,3.2078]
[1750051882933,1.3138,2600.4,2600.1,3.2078]
[1750051883133,1.3138,2600.4,2600.2,0.76909]
[1750051883334,1.3138,2600.4,2600.2,0.76908]
[1750051883834,1.3138,2600.4,2600.1,3.2078]
[1750051884038,0.9357,2601.0,2600.1,3.2078]
[1750051884039,7.955,2600.9,2600.1,3.2078]
[1750051884229,0.76896,2600.7,2600.4,3.2078]
[1750051884429,1.3138,2600.6,2600.4,3.2078]
[1750051884629,0.769,2600.5,2600.4,3.2078]
[1750051887132,0.76909,2600.2,2600.1,3.2078]
[1750051887439,0.76908,2600.3,2600.1,3.2078]
[1750051887737,1.3602,2600.2,2600.1,3.2078]
[1750051887936,2.12929,2600.2,2600.1,3.2078]
[1750051888133,1.3602,2600.2,2600.1,3.2078]
[1750051888443,6.576,2600.7,2600.1,3.2078]
[1750051888632,0.76899,2600.6,2600.4,3.2078]
[1750051888941,2.02359,2600.6,2600.4,3.2078]
[1750051889441,2.02359,2600.6,2600.4,3.10407504]
[1750051889642,0.769,2600.5,2600.4,3.10407504]
[1750051890040,2.02358,2600.6,2600.4,3.10407504]
[1750051890237,12.49904463,2600.5,2600.1,3.2078]
[1750051890541,12.49904463,2600.5,2599.8,1.50665782]
[1750051890542,0.76919,2599.9,2599.8,3.2078]
[1750051891133,0.76916,2600.0,2599.8,3.2078]
[1750051891342,0.76918,2599.9,2599.8,3.2078]
[1750051892333,3.2078,2600.4,2600.3,0.76906]
[1750051892539,6.576,2600.7,2600.3,3.2078]
[1750051892741,0.76898,2600.6,2600.3,3.97686]
[1750051892944,6.576,2600.7,2600.3,3.2078]
[1750051893251,0.76901,2600.5,2600.3,3.2078]
[1750051893637,2.12249,2600.6,2600.3,3.2078]
[1750051893846,2.12248,2600.6,2600.3,3.2078]
[1750051894055,0.76901,2600.5,2600.3,3.2078]
[1750051894258,0.76903,2600.4,2600.3,3.2078]
[1750051895848,0.76903,2600.4,2600.2,1.12517171]
[1750051895849,0.76909,2600.2,2600.1,1.12517171]
[1750051896038,0.76909,2600.2,2600.0,4.33297171]
[1750051896638,1.2808,2600.3,2600.0,4.33297171]
[1750051896843,1.2808,2600.1,2600.0,4.33297171]
[1750051897247,10.74868,2600.6,2600.0,3.2078]
[1750051897444,0.76911,2600.2,2600.0,4.33297171]
[1750051897651,1.2808,2600.1,2600.0,4.33297171]
[1750051897945,0.9482,2600.6,2600.1,0.76912]
[1750051898150,2.2071,2600.6,2600.3,3.2078]
[1750051898343,0.76905,2600.4,2600.3,3.2078]
[1750051898661,0.76911,2600.2,2600.0,4.33297171]
[1750051898838,0.76908,2600.3,2600.0,5.10212171]
[1750051899041,2.2071,2600.6,2600.0,5.10212171]
[1750051899241,10.0851,2600.6,2600.1,0.76911]
[1750051899449,0.76907,2600.3,2600.1,1.12517171]
[1750051900042,0.76905,2600.4,2600.1,1.89429171]
[1750051900648,0.76905,2600.4,2600.3,3.2078]
[1750051908051,12.26758523,2603.2,2600.6,1.9224]
[1750051908252,6.90195556,2605.2,2602.3,38.4236]
[1750051908455,21.2467223,2607.1,2605.2,3.2078]
[1750051908758,3.2078,2609.3,2607.4,3.2078]
[1750051909059,3.2078,2611.3,2609.2,3.2078]
[1750051909354,0.22593056,2610.9,2610.8,3.2078]
[1750051909548,11.095,2613.0,2610.8,5.12115636]
[1750051909746,0.38143688,2613.3,2612.9,7.12776516]
[1750051909952,3.2078,2618.6,2615.4,3.2078]
[1750051910149,1.90971,2618.0,2616.0,7.63748015]
[1750051910452,3.2078,2613.4,2612.9,2.21803645]
[1750051910655,3.2078,2613.2,2612.9,1.53574622]
[1750051910949,3.2078,2615.5,2613.1,3.2078]
[1750051911150,23.221,2617.4,2614.4,3.2078]
[1750051911350,3.2078,2614.8,2614.0,3.2078]
[1750051911649,23.221,2615.2,2614.6,11.67603677]
[1750051911852,0.7651,2613.8,2613.0,3.2078]
[1750051912048,3.2078,2613.8,2612.6,3.2078]
[1750051912255,3.2078,2615.4,2613.7,3.2078]
[1750051912455,3.2078,2619.1,2616.3,3.2078]
[1750051912663,3.2078,2617.3,2616.6,3.2078]
[1750051912954,3.2078,2616.7,2615.8,3.2078]
[1750051913153,3.2078,2616.1,2615.3,3.2078]
[1750051913357,3.2078,2616.7,2615.7,3.2078]
[1750051913559,3.2078,2616.7,2613.9,1.3246]
[1750051913560,3.0,2617.0,2615.8,3.2078]
[1750051913854,0.00573296,2616.7,2616.1,0.00573296]
[1750051914045,3.2078,2616.2,2614.9,3.2078]
[1750051914352,3.2078,2618.9,2616.1,3.2078]
[1750051914556,6.793628,2616.6,2616.1,3.2078]
[1750051914754,3.2078,2616.2,2614.6,3.2078]
[1750051914947,6.793628,2615.2,2614.6,3.2078]
[1750051915148,3.2078,2614.7,2614.1,3.2078]
[1750051915349,3.2078,2614.7,2612.9,3.2078]
[1750051915350,3.2078,2614.2,2612.9,3.2078]
[1750051915554,6.793628,2613.8,2612.2,3.2078]
[1750051915752,3.2078,2613.0,2612.3,1.3433]
[1750051915951,3.2078,2612.8,2612.3,1.3433]
[1750051916250,1.18759997,2612.3,2611.6,3.2078]
[1750051916557,1.18759997,2612.3,2607.7,1.91716]
[1750051916558,3.2078,2611.8,2611.7,0.00574416]
[1750051916755,3.2078,2611.8,2610.8,3.2078]
[1750051916950,3.2078,2611.5,2610.8,3.2078]
[1750051917152,3.2078,2611.5,2608.9,24.1245]
[1750051917153,3.2078,2611.1,2610.2,3.2078]
[1750051917345,1.18759997,2610.2,2609.9,3.2078]
[1750051917746,1.18759997,2610.2,2609.6,3.2078]
[1750051917955,1.18759997,2610.2,2609.8,0.00574416]
[1750051918148,4.39539997,2610.2,2609.8,0.00574416]
[1750051918460,4.39539997,2610.2,2608.4,40.8]
[1750051918461,1.18185581,2609.8,2609.3,3.2078]
[1750051918658,3.2078,2611.1,2609.6,10.001428]
[1750051918861,3.2078,2610.5,2609.8,3.2078]
[1750051919062,3.2078,2610.7,2609.0,3.2078]
[1750051919250,23.182,2610.6,2609.0,3.2078]
[1750051919562,24.5375,2610.6,2609.1,1.2471]
[1750051919864,0.00574416,2610.1,2609.6,0.00574416]
[1750051920055,3.21354416,2610.1,2609.6,0.00574416]
[1750051920251,3.2078,2611.4,2609.9,3.2078]
[1750051920458,3.2078,2612.5,2611.3,3.2078]
[1750051920652,3.2078,2612.4,2611.7,3.2078]